bitfinex/quotes_BTCUSD_20240908
["timestamp","ask_amount","ask_price","bid_price","bid_amount"]
[1725834607762,0.011816,55383.0,55382.0,0.434353]
[1725834607978,0.011816,55383.0,55382.0,0.606653]
[1725834608185,0.000816,55383.0,55382.0,0.605653]
[1725834608394,0.000816,55383.0,55382.0,0.1723]
[1725834608395,0.145264,55383.0,55382.0,0.1723]
[1725834608598,0.000816,55383.0,55382.0,0.1713]
[1725834608839,0.000816,55383.0,55370.0,0.288961]
[1725834608840,0.289713,55383.0,55378.0,0.002]
[1725834609059,0.289713,55383.0,55356.0,0.02164]
[1725834609060,0.22142865,55380.0,55356.0,0.00164]
[1725834609264,0.94380065,55373.0,55365.0,0.2071]
[1725834609470,1.4465893,55373.0,55361.0,0.55430836]
[1725834609677,1.4465893,55373.0,55359.0,0.2071]
[1725834609678,1.81359599,55373.0,55359.0,0.2071]
[1725834610097,1.67886323,55373.0,55359.0,0.2071]
[1725834610315,1.81371676,55373.0,55359.0,0.2071]
[1725834610520,1.81371676,55373.0,55356.0,0.00164]
[1725834610521,0.578034,55360.0,55356.0,0.00164]
[1725834610747,0.144516,55357.0,55356.0,0.00164]
[1725834610959,0.36594465,55357.0,55356.0,0.00164]
[1725834611418,0.65497765,55357.0,55356.0,0.00164]
[1725834611840,1.5974723,55357.0,55356.0,0.00164]
[1725834612055,1.64028009,55357.0,55356.0,0.00164]
[1725834612234,1.87627036,55357.0,55356.0,0.00164]
[1725834612486,1.83792604,55357.0,55356.0,0.09294]
[1725834612912,1.70203392,55357.0,55356.0,0.09194]
[1725834613132,1.70403392,55357.0,55356.0,0.09194]
[1725834613349,1.83693789,55357.0,55356.0,0.09294]
[1725834613570,1.70203392,55357.0,55356.0,0.09294]
[1725834613790,1.24316965,55350.0,55349.0,0.00163]
[1725834614001,1.49648883,55350.0,55349.0,0.00163]
[1725834614212,1.49648883,55350.0,55348.0,0.00164]
[1725834614213,0.36599665,55337.0,55336.0,0.2172]
[1725834614427,0.65513365,55337.0,55336.0,0.2172]
[1725834615161,0.94427065,55337.0,55336.0,0.2172]
[1725834615310,0.65513365,55337.0,55336.0,0.2172]
[1725834615530,0.36599665,55337.0,55336.0,0.2172]
[1725834615743,0.94627065,55337.0,55336.0,0.007]
[1725834616395,0.43372,55335.0,55334.0,0.00164]
[1725834616622,0.433744,55332.0,55331.0,0.00164]
[1725834616843,0.433744,55332.0,55324.0,0.00164]
[1725834616844,0.1446,55325.0,55324.0,0.00164]
[1725834617078,1.23362865,55325.0,55324.0,0.00164]
[1725834617560,1.24362865,55325.0,55324.0,0.00164]
[1725834617836,1.24562865,55325.0,55324.0,0.00164]
[1725834618054,1.0122,55325.0,55324.0,0.00164]
[1725834618269,1.46613485,55325.0,55324.0,0.00164]
[1725834618482,1.77607565,55325.0,55324.0,0.00164]
[1725834618695,1.3591112,55325.0,55324.0,0.00164]
[1725834619152,1.34607919,55325.0,55324.0,0.00264]
[1725834619377,1.3022,55325.0,55324.0,0.00264]
[1725834619583,1.34207919,55325.0,55324.0,0.00164]
[1725834619804,1.52702238,55325.0,55324.0,0.00164]
[1725834620020,1.48718307,55325.0,55324.0,0.00264]
[1725834620231,1.022308,55319.0,55318.0,0.00164]
[1725834620443,1.022308,55319.0,55305.0,0.00164]
[1725834620444,0.289252,55315.0,55305.0,0.00164]
[1725834620648,0.94455865,55315.0,55305.0,0.00164]
[1725834620857,1.04455865,55315.0,55305.0,0.00164]
[1725834621065,0.78366378,55315.0,55305.0,0.00164]
[1725834621474,0.75530665,55315.0,55305.0,0.00164]
[1725834621697,0.46605465,55315.0,55305.0,0.00164]
[1725834622013,0.75530665,55315.0,55305.0,0.00164]
[1725834622235,1.15901282,55315.0,55305.0,0.00164]
[1725834622439,1.05155865,55315.0,55305.0,0.00164]
[1725834622909,0.723235,55307.0,55305.0,0.00164]
[1725834623113,1.34395765,55307.0,55305.0,0.00164]
[1725834623319,1.34395765,55307.0,55300.0,0.00164]
[1725834623320,1.1661693,55301.0,55300.0,0.00164]
[1725834623523,1.24406565,55301.0,55300.0,0.00164]
[1725834623929,0.37949871,55301.0,55300.0,0.00164]
[1725834624132,0.22142865,55301.0,55300.0,0.00164]
[1725834624334,0.36609065,55301.0,55300.0,0.00164]
[1725834624540,0.65541565,55301.0,55300.0,0.00164]
[1725834624952,0.22142865,55301.0,55300.0,0.00164]
[1725834625357,0.36609065,55301.0,55300.0,0.00164]
[1725834625562,0.65541565,55301.0,55300.0,0.00164]
[1725834625774,0.94474065,55301.0,55300.0,0.00164]
[1725834625981,1.24406565,55301.0,55300.0,0.00164]
[1725834626187,0.02836011,55306.0,55301.0,0.3844]
[1725834626638,0.02836011,55306.0,55305.0,0.433956]
[1725834626850,0.02836011,55306.0,55305.0,0.72326]
[1725834627065,0.02836011,55306.0,55305.0,0.130652]
[1725834627276,0.02836011,55306.0,55305.0,0.596756]
[1725834627492,0.22142865,55324.0,55310.0,0.1768]
[1725834627701,0.2497819,55320.0,55311.0,0.289271]
[1725834627905,0.22142865,55320.0,55310.0,0.1768]
[1725834628316,0.22142865,55324.0,55310.0,0.18041575]
[1725834628539,0.02834967,55327.0,55315.0,0.289251]
[1725834628749,0.02834967,55327.0,55319.0,0.28923]
[1725834628957,0.17294467,55327.0,55322.0,0.144607]
[1725834629167,0.02834967,55327.0,55322.0,0.2124]
[1725834629381,0.144605,55323.0,55322.0,0.2074]
[1725834629591,0.02834967,55327.0,55322.0,0.2074]
[1725834629592,0.22142865,55324.0,55322.0,0.2074]
[1725834630292,0.02834967,55327.0,55322.0,0.2074]
[1725834630704,0.18194467,55327.0,55322.0,0.353007]
[1725834631118,0.03734967,55327.0,55322.0,0.2084]
[1725834631330,0.289197,55326.0,55323.0,0.001634]
[1725834631547,0.03734967,55327.0,55323.0,0.001634]
[1725834631778,0.433807,55324.0,55323.0,0.001634]
[1725834632405,0.723012,55324.0,55323.0,0.001634]
[1725834632882,0.65523565,55324.0,55323.0,0.001634]
[1725834633097,0.02834967,55327.0,55323.0,0.146239]
[1725834633341,0.02834967,55327.0,55323.0,0.147239]
[1725834633573,0.02834967,55327.0,55326.0,0.433791]
[1725834633816,0.02834967,55327.0,55326.0,1.117585]
[1725834634030,0.02834967,55327.0,55326.0,1.115585]
[1725834634688,0.14458,55333.0,55326.0,0.683794]
[1725834634896,0.02834039,55333.0,55326.0,0.3946]
[1725834635098,0.02834039,55333.0,55330.0,0.144585]
[1725834635306,0.02834039,55333.0,55327.0,0.144592]
[1725834635307,0.144582,55332.0,55327.0,0.144592]
[1725834635537,0.02834039,55333.0,55328.0,0.144591]
[1725834635774,0.02834039,55333.0,55326.0,0.3946]
[1725834635775,0.02834039,55333.0,55327.0,0.2154]
[1725834636010,0.02834039,55333.0,55332.0,0.359981]
[1725834636235,0.02834039,55333.0,55332.0,0.649144]
[1725834636467,0.144574,55335.0,55332.0,0.2154]
[1725834636934,0.000817,55337.0,55332.0,0.2114]
[1725834637186,0.144577,55334.0,55332.0,0.2114]
[1725834637412,0.433715,55336.0,55332.0,0.2114]
[1725834637875,0.000817,55337.0,55332.0,0.2114]
[1725834638151,0.000817,55337.0,55335.0,0.144571]
[1725834638372,0.144572,55336.0,55332.0,0.2114]
[1725834638577,0.144574,55335.0,55332.0,0.2114]
[1725834638784,0.144577,55334.0,55332.0,0.2114]
[1725834638985,0.144579,55333.0,55332.0,0.2114]
[1725834639199,0.144576,55334.0,55332.0,0.2114]
[1725834639410,0.144594,55327.0,55326.0,0.1658]
[1725834639824,0.22142865,55330.0,55323.0,0.001634]
[1725834639825,0.144602,55324.0,55323.0,0.001634]
[1725834640027,0.144602,55324.0,55323.0,0.221834]
[1725834640232,0.433807,55324.0,55323.0,0.221834]
[1725834640868,0.723012,55324.0,55323.0,0.221834]
[1725834641080,0.723012,55324.0,55323.0,0.001634]
[1725834641081,1.012217,55324.0,55323.0,0.001634]
[1725834641293,1.122217,55324.0,55323.0,0.001634]
[1725834641505,0.823012,55324.0,55323.0,0.001634]
[1725834641720,0.533807,55324.0,55323.0,0.001634]
[1725834641976,0.823012,55324.0,55323.0,0.006634]
[1725834642178,0.85136246,55324.0,55323.0,0.006634]
[1725834642392,1.25501152,55324.0,55323.0,0.001634]
[1725834642853,0.94457065,55314.0,55313.0,0.225]
[1725834643316,0.94457065,55314.0,55308.0,0.2302]
[1725834643317,0.723207,55309.0,55308.0,0.2302]
[1725834643534,0.144654,55304.0,55303.0,0.3963]
[1725834643740,0.144649,55306.0,55303.0,0.3963]
[1725834643968,0.144654,55304.0,55303.0,0.2302]
[1725834644411,0.139654,55304.0,55303.0,0.2302]
[1725834644629,0.428963,55304.0,55303.0,0.2302]
[1725834645306,0.433995,55300.0,55299.0,0.231832]
[1725834645563,0.94475365,55300.0,55299.0,0.231832]
[1725834645993,0.65542365,55300.0,55299.0,0.231832]
[1725834646205,0.94475365,55300.0,55299.0,0.231832]
[1725834646570,0.65542365,55300.0,55299.0,0.231832]
[1725834646951,0.65542365,55300.0,55299.0,0.232832]
[1725834647164,0.02835765,55305.0,55299.0,0.232832]
[1725834647377,0.31766665,55305.0,55299.0,0.232832]
[1725834647568,0.144665,55300.0,55299.0,0.231832]
[1725834647943,0.36609365,55300.0,55299.0,0.231832]
[1725834648195,0.65542365,55300.0,55299.0,0.231832]
[1725834649513,0.65542365,55300.0,55299.0,0.232832]
[1725834649977,0.65542365,55300.0,55299.0,0.231832]
[1725834650241,0.65542365,55300.0,55294.0,0.212832]
[1725834650242,0.723392,55295.0,55294.0,0.212832]
[1725834650479,0.65546365,55295.0,55294.0,0.212832]
[1725834651024,0.94482065,55295.0,55294.0,0.212832]
[1725834651252,0.97318405,55295.0,55294.0,0.001632]
[1725834651720,0.7517554,55295.0,55294.0,0.001632]
[1725834652192,0.1730414,55295.0,55294.0,0.001632]
[1725834652446,0.97318405,55295.0,55294.0,0.001632]
[1725834652687,0.1730414,55295.0,55294.0,0.001632]
[1725834652915,0.4623984,55295.0,55294.0,0.001632]
[1725834653394,0.4713984,55295.0,55294.0,0.002632]
[1725834653927,0.0283634,55295.0,55294.0,0.001632]
[1725834654921,0.1730414,55295.0,55294.0,0.001632]
[1725834655379,0.1730414,55295.0,55293.0,0.224972]
[1725834655380,0.0283634,55295.0,55293.0,0.224972]
[1725834655608,0.144681,55294.0,55293.0,0.224972]
[1725834655847,0.0283634,55295.0,55293.0,0.224972]
[1725834656334,0.434043,55294.0,55293.0,0.224972]
[1725834656597,0.723405,55294.0,55293.0,0.224972]
[1725834657546,0.723405,55294.0,55289.0,0.0108518]
[1725834657547,0.434074,55290.0,55289.0,0.0108518]
[1725834657964,1.0851836,55290.0,55289.0,0.0108518]
[1725834658197,1.01284,55290.0,55289.0,0.0108518]
[1725834658381,0.723457,55290.0,55289.0,0.0108518]
[1725834658800,0.725457,55290.0,55289.0,0.0108518]
[1725834659219,1.34544,55290.0,55289.0,0.0108518]
[1725834659454,1.56171848,55290.0,55289.0,0.0108518]
[1725834659633,1.58907805,55290.0,55289.0,0.00022235]
[1725834659850,1.51417805,55290.0,55289.0,0.00022235]
[1725834660060,1.50417805,55290.0,55289.0,0.00022235]
[1725834660277,0.005,55290.0,55289.0,0.22062235]
[1725834660483,0.005,55290.0,55289.0,0.38992235]
[1725834660739,0.244681,55294.0,55289.0,0.38992235]
[1725834660967,0.144691,55290.0,55289.0,0.22162235]
[1725834661155,0.434074,55290.0,55289.0,0.22162235]
[1725834661388,0.723457,55290.0,55289.0,0.00122235]
[1725834661603,1.26054,55290.0,55289.0,0.00122235]
[1725834661822,1.26054,55290.0,55277.0,0.2131]
[1725834661823,0.002,55289.0,55237.0,0.0906]
[1725834662035,0.002,55289.0,55231.0,0.05256434]
[1725834662268,0.002,55289.0,55212.0,0.07935403]
[1725834662501,0.002,55289.0,55105.0,0.55430836]
[1725834662502,0.002,55289.0,55183.0,0.46061672]
[1725834662503,0.22142865,55227.0,55183.0,0.46061672]
[1725834662722,0.18503,55161.0,55145.0,0.55430836]
[1725834662936,0.93215819,55161.0,55160.0,0.4849873]
[1725834663160,0.14504,55158.0,55140.0,0.145084]
[1725834663428,0.01,55165.0,55132.0,4.21066868]
[1725834663429,0.46208118,55147.0,55132.0,3.92046068]
[1725834663656,0.22142865,55154.0,55132.0,3.92046068]
[1725834663657,1.30423425,55146.0,55132.0,3.92046068]
[1725834663882,1.80107951,55164.0,55138.0,0.145087]
[1725834663883,1.30423425,55145.0,55138.0,0.145087]
[1725834664109,1.04677104,55157.0,55134.0,0.00362694]
[1725834664326,1.51103351,55164.0,55139.0,0.01]
[1725834664327,0.26369741,55149.0,55139.0,0.01]
[1725834664544,0.05935431,55151.0,55150.0,0.445175]
[1725834664787,0.05935431,55151.0,55132.0,4.27046068]
[1725834664788,0.10680102,55159.0,55158.0,0.012]
[1725834664980,0.55430836,55165.0,55158.0,0.012]
[1725834664981,0.08009258,55163.0,55162.0,0.157027]
[1725834665195,0.66110938,55165.0,55164.0,0.447066]
[1725834665196,0.55430836,55165.0,55164.0,0.447066]
[1725834665413,0.13351924,55173.0,55164.0,0.447066]
[1725834665414,0.05338892,55175.0,55170.0,0.1694]
[1725834665630,0.08009258,55178.0,55170.0,0.1694]
[1725834665631,0.55430836,55173.0,55170.0,0.1694]
[1725834665841,0.05338892,55178.0,55177.0,0.434962]
[1725834666062,0.05338892,55178.0,55170.0,0.1694]
[1725834666063,0.05338892,55183.0,55170.0,0.1694]
[1725834666278,0.10680102,55188.0,55170.0,0.1694]
[1725834666279,0.05326928,55186.0,55185.0,0.144966]
[1725834666485,0.05326928,55186.0,55175.0,0.289986]
[1725834666700,0.01,55188.0,55170.0,0.1694]
[1725834666701,0.05326928,55185.0,55176.0,0.28998]
[1725834666937,0.05326928,55185.0,55184.0,0.434908]
[1725834667154,0.05326928,55192.0,55191.0,0.144951]
[1725834667370,0.06326928,55196.0,55195.0,0.14494]
[1725834667590,0.06326928,55196.0,55171.0,0.01]
[1725834667591,0.01,55192.0,55169.0,0.01]
[1725834667804,0.01,55186.0,55185.0,0.289933]
[1725834668010,0.13351924,55198.0,55185.0,0.289933]
[1725834668011,0.01,55190.0,55189.0,0.144956]
[1725834668226,0.0631506,55190.0,55176.0,0.289981]
[1725834668570,0.01,55185.0,55171.0,0.00362418]
[1725834668684,0.01,55176.0,55170.0,0.1694]
[1725834668922,0.01,55176.0,55174.0,0.144994]
[1725834669150,0.01,55176.0,55172.0,0.289999]
[1725834669384,0.13275662,55189.0,55172.0,0.289999]
[1725834669385,0.01,55177.0,55176.0,0.14499]
[1725834670096,0.01,55178.0,55177.0,0.144987]
[1725834670332,0.01,55178.0,55177.0,0.434962]
[1725834670808,0.1,55189.0,55170.0,0.1694]
[1725834670809,0.01,55174.0,55170.0,0.1694]
[1725834671062,0.01,55165.0,55157.0,0.1801]
[1725834671309,0.002,55183.0,55146.0,0.001636]
[1725834671310,0.01,55156.0,55152.0,0.2244]
[1725834671558,0.01,55156.0,55155.0,0.145045]
[1725834671794,0.01,55156.0,55152.0,0.2244]
[1725834672037,0.01,55156.0,55153.0,0.14505]
[1725834672286,0.01,55156.0,55152.0,0.2244]
[1725834672523,0.01,55156.0,55154.0,0.145047]
[1725834672766,0.01,55156.0,55143.0,0.290149]
[1725834672767,0.55430836,55155.0,55131.0,0.01]
[1725834673012,0.55430836,55155.0,55072.0,0.2494832]
[1725834673013,0.01,55095.0,55072.0,0.0112832]
[1725834673260,0.3625,55143.0,55072.0,0.0112832]
[1725834673261,1.02150042,55073.0,55072.0,0.0112832]
[1725834673529,0.01,55082.0,55072.0,0.0112832]
[1725834673772,0.02662563,55081.0,55072.0,0.2356832]
[1725834674022,0.01,55101.0,55072.0,0.2356832]
[1725834674275,0.01,55091.0,55090.0,0.00164]
[1725834674519,0.00362563,55101.0,55090.0,0.00164]
[1725834674520,0.01,55092.0,55090.0,0.00164]
[1725834674768,0.01,55091.0,55090.0,0.00164]
[1725834675014,0.01,55091.0,55090.0,0.146856]
[1725834675250,0.01,55091.0,55090.0,0.00164]
[1725834675487,0.01,55091.0,55090.0,0.437289]
[1725834675742,0.00362563,55101.0,55090.0,0.437289]
[1725834675743,0.01,55092.0,55090.0,0.00482]
[1725834675973,0.01,55091.0,55090.0,0.00482]
[1725834676260,0.023,55091.0,55072.0,0.0112832]
[1725834676504,0.002,55099.0,55072.0,0.0112832]
[1725834676505,0.01,55082.0,55079.0,0.55430836]
[1725834676757,0.00362563,55090.0,55072.0,0.0112832]
[1725834676758,0.01,55081.0,55072.0,0.0112832]
[1725834677004,0.01,55073.0,55072.0,0.0112832]
[1725834677734,0.01,55074.0,55073.0,0.145261]
[1725834677980,0.00362563,55098.0,55072.0,0.0112832]
[1725834678210,0.55430836,55111.0,55072.0,0.0112832]
[1725834678211,0.01,55099.0,55097.0,0.145198]
[1725834678459,0.55430836,55111.0,55072.0,0.0112832]
[1725834678460,0.01,55100.0,55089.0,0.798378]
[1725834678762,0.01,55106.0,55105.0,0.145177]
[1725834679002,0.55430836,55122.0,55108.0,0.145169]
[1725834679003,0.01,55109.0,55108.0,0.145169]
[1725834679234,0.01,55109.0,55108.0,0.12984613]
[1725834679730,0.081063,55126.0,55078.0,0.1]
[1725834679731,0.01,55096.0,55078.0,0.1]
[1725834679983,0.01,55102.0,55101.0,0.145187]
[1725834680237,0.01,55103.0,55102.0,0.725925]
[1725834680473,0.01,55103.0,55102.0,0.145185]
[1725834680733,0.00362563,55122.0,55090.0,0.290431]
[1725834680734,0.01,55108.0,55107.0,0.145172]
[1725834680995,0.55430836,55123.0,55117.0,0.435436]
[1725834680996,0.01,55118.0,55117.0,0.435436]
[1725834681251,0.01,55127.0,55125.0,0.290249]
[1725834681505,0.01,55126.0,55125.0,0.435373]
[1725834681759,0.01,55107.0,55076.0,0.55430836]
[1725834682001,0.01,55102.0,55093.0,0.55430836]
[1725834682265,0.01,55102.0,55083.0,0.023]
[1725834682266,0.01,55102.0,55101.0,0.435562]
[1725834682741,0.01,55102.0,55083.0,0.023]
[1725834682742,0.022,55111.0,55110.0,0.145164]
[1725834682966,0.022,55108.0,55107.0,0.290344]
[1725834683219,0.01,55102.0,55100.0,0.2284]
[1725834683467,0.01,55096.0,55084.0,0.1745]
[1725834683773,0.01,55097.0,55096.0,0.145199]
[1725834684012,0.02,55107.0,55106.0,0.435523]
[1725834684248,0.02,55104.0,55099.0,0.290384]
[1725834684486,0.02,55104.0,55103.0,0.145182]
[1725834684725,0.02,55104.0,55103.0,0.435547]
[1725834685200,0.02,55104.0,55103.0,0.145182]
[1725834685435,0.022,55104.0,55103.0,0.435547]
[1725834685667,0.02,55104.0,55103.0,0.725912]
[1725834686145,0.01,55109.0,55092.0,0.290423]
[1725834686407,0.02,55109.0,55108.0,0.145169]
[1725834686641,0.02,55109.0,55084.0,0.1745]
[1725834686642,0.012,55101.0,55100.0,0.14519]
[1725834686886,0.002,55094.0,55089.0,0.145217]
[1725834687132,0.01,55097.0,55081.0,0.14524]
[1725834687133,0.01,55082.0,55081.0,0.14524]
[1725834687370,0.022,55082.0,55081.0,0.14524]
[1725834687609,0.022,55082.0,55066.0,0.290557]
[1725834687856,0.022,55082.0,55067.0,0.00363128]
[1725834687857,0.02,55082.0,55067.0,0.00363128]
[1725834688097,0.02,55082.0,55081.0,0.14352801]
[1725834688336,0.00362563,55095.0,55055.0,0.290613]
[1725834688337,0.01,55074.0,55073.0,0.435783]
[1725834688570,0.01,55074.0,55073.0,0.726306]
[1725834688810,0.02,55079.0,55078.0,0.145248]
[1725834689045,0.02,55079.0,55078.0,0.435745]
[1725834689289,0.022,55079.0,55078.0,0.435745]
[1725834689527,0.02,55079.0,55078.0,0.435745]
[1725834689767,0.01,55074.0,55073.0,0.145259]
[1725834690011,0.002,55083.0,55049.0,0.1734]
[1725834690012,0.02,55073.0,55049.0,0.464045]
[1725834690253,0.022,55073.0,55072.0,0.292164]
[1725834690494,0.022,55073.0,55072.0,0.437428]
[1725834690734,0.02,55074.0,55073.0,0.435784]
[1725834690978,0.012,55073.0,55072.0,0.001636]
[1725834691222,0.022,55073.0,55072.0,0.001636]
[1725834691703,0.022,55073.0,55072.0,0.1469]
[1725834691944,0.02,55073.0,55072.0,0.001636]
[1725834692179,0.022,55073.0,55072.0,0.001636]
[1725834692659,0.022,55073.0,55059.0,0.290593]
[1725834692660,0.01,55060.0,55059.0,0.290593]
[1725834692897,0.02,55060.0,55059.0,0.435895]
[1725834693132,0.022,55068.0,55067.0,0.145277]
[1725834693370,0.00362563,55078.0,55066.0,0.29056]
[1725834693371,0.02,55067.0,55066.0,0.29056]
[1725834693605,0.02,55067.0,55066.0,0.7264]
[1725834693872,0.1,55083.0,55069.0,0.435816]
[1725834693873,0.02,55070.0,55069.0,0.435816]
[1725834694353,0.02,55068.0,55067.0,0.145275]
[1725834694598,0.01,55059.0,55058.0,0.290597]
[1725834694831,0.00362563,55082.0,55051.0,0.2238]
[1725834694832,0.022,55066.0,55065.0,0.145282]
[1725834695314,0.022,55066.0,55065.0,0.435847]
[1725834695549,0.01,55057.0,55056.0,0.145306]
[1725834695790,0.02,55059.0,55058.0,0.435903]
[1725834696274,0.02,55059.0,55051.0,0.290639]
[1725834696520,0.3961,55071.0,55041.0,0.2064]
[1725834696521,0.01,55053.0,55041.0,0.2064]
[1725834696747,0.022,55051.0,55043.0,0.292318]
[1725834696956,0.02,55053.0,55052.0,0.435951]
[1725834697169,0.02,55053.0,55052.0,0.145317]
[1725834697379,0.02,55053.0,55043.0,0.00164]
[1725834697587,0.02,55053.0,55052.0,0.435951]
[1725834698025,0.02,55053.0,55052.0,0.726585]
[1725834698266,0.02,55057.0,55056.0,0.145306]
[1725834698502,0.022,55058.0,55057.0,0.145303]
[1725834698715,0.022,55058.0,55043.0,0.00164]
[1725834698716,0.01,55066.0,55065.0,0.145282]
[1725834699194,0.01,55066.0,55043.0,0.02827209]
[1725834699195,0.02,55066.0,55043.0,0.02827209]
[1725834699197,0.02,55069.0,55066.0,0.29056]
[1725834699411,0.01,55069.0,55068.0,0.435823]
[1725834699624,0.01,55066.0,55051.0,0.290637]
[1725834699835,0.01,55069.0,55066.0,0.29056]
[1725834700046,0.01,55067.0,55066.0,0.43584]
[1725834700266,0.01,55067.0,55066.0,0.14528]
[1725834700499,0.02,55066.0,55043.0,0.02464]
[1725834700734,0.01,55063.0,55062.0,0.14529]
[1725834701196,0.01,55063.0,55061.0,0.145291]
[1725834701445,0.002,55065.0,55045.0,0.290666]
[1725834701446,0.01,55055.0,55045.0,0.290666]
[1725834701671,0.01,55049.0,55046.0,0.55430836]
[1725834701883,0.01,55049.0,55040.0,0.17554]
[1725834701884,0.02,55044.0,55040.0,0.00164]
[1725834702118,0.022,55044.0,55040.0,0.00164]
[1725834702829,0.167338,55044.0,55040.0,0.00164]
[1725834703089,0.15272199,55044.0,55040.0,0.00164]
[1725834703322,0.58463963,55044.0,55040.0,0.00164]
[1725834703564,0.02,55019.0,55016.0,0.00164]
[1725834703805,0.012,55015.0,55009.0,1e-08]
[1725834704034,0.02,55010.0,55009.0,1e-08]
[1725834704991,0.12562563,55010.0,55009.0,1e-08]
[1725834705457,0.12562563,55010.0,54995.0,0.619033]
[1725834705458,0.20909199,55000.0,54999.0,0.145457]
[1725834705700,0.01,55012.0,54996.0,0.00363632]
[1725834705932,0.01,55012.0,55011.0,0.727125]
[1725834706167,0.01,55012.0,55011.0,0.436275]
[1725834706400,0.02,55006.0,55005.0,0.436323]
[1725834706684,0.002,55007.0,55006.0,0.145438]
[1725834706911,0.01,55007.0,55006.0,0.145438]
[1725834707143,0.022,55007.0,55006.0,0.145438]
[1725834707384,0.01,55007.0,55006.0,0.436315]
[1725834707618,0.01,55007.0,55006.0,0.727192]
[1725834707848,0.02,55008.0,55007.0,0.72718]
[1725834708078,0.022,55008.0,55007.0,0.436308]
[1725834708338,0.390756,55029.0,55005.0,0.290881]
[1725834708339,0.38685927,55029.0,55005.0,0.290881]
[1725834708583,0.55430836,55019.0,55006.0,0.290874]
[1725834708831,0.01,54917.0,54891.0,0.145741]
[1725834709105,0.01,54917.0,54871.0,0.07810607]
[1725834709106,0.2783425,54886.0,54869.0,0.07810607]
[1725834709327,0.2783425,54886.0,54843.0,0.01]
[1725834709328,0.05875507,54884.0,54853.0,3.99995]
[1725834709576,1.9433425,54885.0,54865.0,0.02074794]
[1725834709577,0.437428,54866.0,54865.0,0.02074794]
[1725834709818,0.6132425,54866.0,54865.0,0.02074794]
[1725834710066,0.4013425,54866.0,54853.0,3.99995]
[1725834710300,0.0001,54866.0,54855.0,0.291677]
[1725834710582,0.0001,54866.0,54865.0,0.145812]
[1725834710841,0.0001,54866.0,54865.0,0.432436]
[1725834711077,0.0001,54866.0,54865.0,1.12031553]
[1725834711303,0.0001,54866.0,54865.0,1.015684]
[1725834712037,0.0001,54866.0,54865.0,1.0194255]
[1725834713253,0.0001,54866.0,54865.0,0.4361775]
[1725834713495,0.0001,54866.0,54865.0,0.4411775]
[1725834713725,0.0001,54866.0,54843.0,0.291737]
[1725834713726,0.0001,54866.0,54848.0,0.01]
[1725834713957,0.0001,54866.0,54860.0,0.145823]
[1725834714203,0.0001,54866.0,54865.0,0.437436]
[1725834714779,0.0001,54866.0,54865.0,0.432436]
[1725834715022,0.0001,54866.0,54865.0,1.361684]
[1725834715283,0.0001,54866.0,54865.0,1.550624]
[1725834715529,0.0001,54866.0,54865.0,1.259]
[1725834715768,0.0001,54866.0,54865.0,0.680752]
[1725834716048,0.0001,54866.0,54865.0,1.264]
[1725834716530,0.0001,54866.0,54865.0,0.147452]
[1725834716841,0.0001,54866.0,54865.0,0.439076]
[1725834717094,0.0001,54866.0,54865.0,0.147452]
[1725834717327,0.0001,54866.0,54865.0,0.7307]
[1725834717688,0.0001,54866.0,54865.0,0.00164]
[1725834718205,0.0001,54866.0,54856.0,0.145835]
[1725834718661,0.0001,54866.0,54858.0,0.145829]
[1725834718667,0.0001,54866.0,54853.0,3.99995]
[1725834719315,0.0001,54866.0,54855.0,0.291677]
[1725834719528,0.0001,54866.0,54853.0,3.99995]
[1725834719749,0.0001,54866.0,54853.0,4.291637]
[1725834719966,0.0001,54866.0,54853.0,3.99995]
[1725834720191,0.0001,54866.0,54857.0,0.145831]
[1725834720451,0.0001,54866.0,54853.0,3.99995]
[1725834720452,0.0001,54866.0,54865.0,0.437436]
[1725834720700,0.0001,54866.0,54859.0,0.642153]
[1725834720946,0.437524,54854.0,54853.0,3.99995]
[1725834721179,0.145841,54854.0,54853.0,3.77145884]
[1725834721895,0.145841,54854.0,54853.0,3.57145884]
[1725834721896,0.729207,54854.0,54853.0,3.57145884]
[1725834722150,1.14409,54854.0,54853.0,3.57145884]
[1725834722425,1.88631573,54854.0,54853.0,2.83782256]
[1725834722655,1.88631573,54854.0,54853.0,2.81382256]
[1725834722908,0.02,54879.0,54853.0,2.81382256]
[1725834723159,0.01,54885.0,54853.0,2.81382256]
[1725834723401,0.293491,54891.0,54853.0,2.81382256]
[1725834723402,0.291669,54857.0,54853.0,2.81382256]
[1725834723650,0.0001,54857.0,54853.0,2.81382256]
[1725834723890,0.0001,54857.0,54856.0,0.437508]
[1725834724110,0.0001,54857.0,54854.0,0.53244593]
[1725834724111,0.55430836,54877.0,54869.0,0.291598]
[1725834724346,0.291417,54905.0,54854.0,0.5288]
[1725834724347,0.55430836,54876.0,54855.0,0.01364433]
[1725834724607,0.70003636,54897.0,54856.0,0.00364434]
[1725834724608,0.55430836,54897.0,54856.0,0.00364434]
[1725834724842,0.55430836,54883.0,54855.0,0.00364432]
[1725834725083,0.073075,54898.0,54859.0,0.55430836]
[1725834725336,0.55430836,54893.0,54860.0,0.00364432]
[1725834725579,0.291412,54906.0,54860.0,0.00364432]
[1725834725580,0.002,54907.0,54872.0,0.291584]
[1725834725864,0.55430836,54892.0,54861.0,0.3512]
[1725834726100,0.291485,54892.0,54861.0,0.3512]
[1725834726371,0.073073,54902.0,54868.0,0.55430836]
[1725834726620,0.55430836,54895.0,54869.0,0.00364402]
[1725834726887,0.073073,54902.0,54883.0,0.145762]